bitfinex/quotes_SOLUSD_20251031
["timestamp","ask_amount","ask_price","bid_price","bid_amount"]
[1761909129903,1.98334204,186.89,186.85,0.67]
[1761909131482,22.57534204,186.91,186.86,1.98334204]
[1761909131689,20.592,186.91,186.87,1.98334204]
[1761909131891,22.57534204,186.91,186.86,2.65334204]
[1761909132405,22.57534204,186.91,186.87,0.67]
[1761909132798,22.57534204,186.91,186.87,63.37]
[1761909133000,27.92565709,186.91,186.87,63.37]
[1761909133307,2.69334204,186.9,186.87,62.7]
[1761909133597,1.98334204,186.9,186.87,63.37]
[1761909134174,1.98334204,186.88,186.87,62.7]
[1761909134594,2.69334204,186.88,186.87,62.7]
[1761909134777,1.98334204,186.88,186.87,62.7]
[1761909136780,2.69334204,186.88,186.87,62.7]
[1761909136983,8.04436943,186.88,186.87,62.7]
[1761909138315,8.04436943,186.88,186.84,62.7]
[1761909138484,1.98334204,186.85,186.84,62.7]
[1761909140409,2.64334204,186.85,186.84,62.7]
[1761909140607,7.99522858,186.85,186.84,62.7]
[1761909143291,7.99522858,186.85,186.81,62.9]
[1761909143604,33.97034938,186.87,186.81,62.9]
[1761909143605,1.98334204,186.83,186.81,62.9]
[1761909144505,1.98334204,186.83,186.81,63.56]
[1761909144704,1.98334204,186.84,186.82,0.66]
[1761909144909,5.35160012,186.86,186.82,0.66]
[1761909145099,1.98334204,186.85,186.82,0.66]
[1761909145813,7.33523401,186.85,186.82,0.66]
[1761909146598,1.98334204,186.84,186.82,0.66]
[1761909146994,1.98334204,186.83,186.81,62.9]
[1761909147199,1.98334204,186.83,186.81,63.56]
[1761909147594,0.66,186.84,186.81,63.56]
[1761909147786,1.98334204,186.83,186.81,62.9]
[1761909149216,1.98334204,186.83,186.81,63.58]
[1761909152412,1.98334204,186.83,186.81,62.9]
[1761909152623,2.66334204,186.82,186.81,62.9]
[1761909152991,1.98334204,186.82,186.81,62.9]
[1761909153407,1.98334204,186.83,186.81,62.9]
[1761909157937,0.68,186.82,186.81,62.9]
[1761909158096,1.98334204,186.82,186.81,62.9]
[1761909158601,8.01608799,186.82,186.81,62.9]
[1761909159791,8.01608799,186.82,186.81,0.2]
[1761909160220,25.38107055,186.82,186.79,0.2]
[1761909160529,27.92866109,186.8,186.79,0.2]
[1761909160818,31.91410774,186.8,186.79,0.2]
[1761909161038,32.59410774,186.8,186.79,0.2]
[1761909161202,28.60866109,186.8,186.79,0.2]
[1761909161404,32.59407008,186.8,186.79,0.2]
[1761909165512,28.60866109,186.8,186.79,0.2]
[1761909166336,22.57534204,186.8,186.79,0.88]
[1761909166629,20.592,186.8,186.79,0.2]
[1761909167221,27.92866109,186.8,186.79,0.2]
[1761909167621,28.60866109,186.8,186.79,0.2]
[1761909168024,28.60866109,186.8,186.79,62.9]
[1761909168236,31.91808246,186.8,186.79,62.9]
[1761909168445,27.92866109,186.8,186.79,62.9]
[1761909168616,22.57534204,186.8,186.79,62.9]
[1761909168937,22.57534204,186.8,186.79,63.58]
[1761909169729,22.57534204,186.8,186.79,62.9]
[1761909170121,26.56667571,186.8,186.79,62.9]
[1761909170526,22.57534204,186.8,186.79,62.9]
[1761909171147,26.56748302,186.8,186.79,62.9]
[1761909172145,22.57534204,186.8,186.79,62.9]
[1761909172444,27.92866109,186.8,186.79,62.9]
[1761909173932,22.57534204,186.8,186.79,63.58]
[1761909174231,20.592,186.8,186.79,63.58]
[1761909174435,7.33797334,186.83,186.79,63.58]
[1761909174648,5.97828754,186.82,186.8,0.68]
[1761909174846,3.9949455,186.81,186.8,63.38]
[1761909175029,1.98334204,186.83,186.8,63.38]
[1761909175227,5.97855787,186.82,186.81,0.68]
[1761909176036,12.01130382,186.82,186.8,62.7]
[1761909176236,1.98334204,186.81,186.8,62.7]
[1761909176936,6.65915225,186.81,186.79,62.9]
[1761909177255,26.5712324,186.8,186.79,62.9]
[1761909177422,22.57534204,186.8,186.79,62.9]
[1761909177944,31.92561811,186.8,186.79,62.9]
[1761909180371,11.33361811,186.8,186.79,62.9]
[1761909182681,9.35027607,186.8,186.79,62.9]
[1761909182879,11.33361811,186.8,186.79,62.9]
[1761909183090,5.98029906,186.8,186.79,62.9]
[1761909183260,9.35027607,186.8,186.79,62.9]
[1761909183446,5.98029906,186.8,186.79,62.9]
[1761909183776,11.33361811,186.8,186.79,62.9]
[1761909184960,5.98029906,186.8,186.79,62.9]
[1761909185757,11.33361811,186.8,186.79,62.9]
[1761909187589,11.33361811,186.8,186.79,63.58]
[1761909187881,11.33361811,186.8,186.79,62.9]
[1761909189159,11.33361811,186.8,186.79,0.88]
[1761909189160,3.99695702,186.8,186.79,0.88]
[1761909189971,3.99695702,186.8,186.79,68.93360565]
[1761909190176,1.98334204,186.84,186.79,70.91694769]
[1761909190380,4.00777713,186.83,186.8,0.68]
[1761909190584,4.00777713,186.82,186.8,0.68]
[1761909190771,4.00777713,186.81,186.8,0.68]
[1761909194395,4.00777713,186.81,186.8,63.38]
[1761909198087,7.78816137,186.81,186.8,62.7]
[1761909198289,7.78816137,186.81,186.79,62.9]
[1761909198489,7.10816137,186.8,186.79,62.9]
[1761909198991,7.78816137,186.8,186.79,62.9]
[1761909199183,7.79152858,186.8,186.79,62.9]
[1761909199590,4.69114434,186.8,186.79,62.9]
[1761909201208,4.01114434,186.8,186.79,62.9]
[1761909202877,13.14484763,186.8,186.79,62.9]
[1761909204781,12.46484763,186.8,186.79,62.9]
[1761909204993,9.36446339,186.8,186.79,62.9]
[1761909206596,13.14484763,186.8,186.79,62.9]
[1761909208694,12.46484763,186.8,186.79,62.9]
[1761909209716,13.14484763,186.8,186.79,62.9]
[1761909212606,10.04446339,186.8,186.79,62.9]
[1761909212817,12.46484763,186.8,186.79,62.9]
[1761909213609,7.11152858,186.8,186.79,62.9]
[1761909214494,4.01114434,186.8,186.79,62.9]
[1761909214692,4.01114434,186.8,186.79,63.57]
[1761909214898,4.01114434,186.8,186.79,62.9]
[1761909217908,7.11152858,186.8,186.79,62.9]
[1761909218531,7.79152858,186.8,186.79,62.9]
[1761909218828,7.11152858,186.8,186.79,62.9]
[1761909219532,7.79152858,186.8,186.79,62.9]
[1761909219834,7.11152858,186.8,186.79,62.9]
[1761909220134,12.46484763,186.8,186.79,62.9]
[1761909220326,13.14484763,186.8,186.79,62.9]
[1761909220516,12.46484763,186.8,186.79,62.9]
[1761909221634,13.14484763,186.8,186.79,62.9]
[1761909222644,4.01114434,186.8,186.79,62.9]
[1761909222830,7.11152858,186.8,186.79,63.57]
[1761909223128,7.11152858,186.8,186.79,62.9]
[1761909223335,7.11676244,186.8,186.79,62.9]
[1761909223520,7.11676244,186.8,186.79,63.57]
[1761909224041,7.11676244,186.8,186.79,62.9]
[1761909224742,4.0163782,186.8,186.79,62.9]
[1761909224911,7.11676244,186.8,186.79,62.9]
[1761909226217,12.47008149,186.8,186.79,62.9]
[1761909226742,16.76023644,186.8,186.79,62.9]
[1761909227032,13.15008149,186.8,186.79,62.9]
[1761909227233,12.47008149,186.8,186.79,62.9]
[1761909227732,16.08023644,186.8,186.79,62.9]
[1761909228249,16.76023644,186.8,186.79,62.9]
[1761909228540,13.15008149,186.8,186.79,62.9]
[1761909228714,16.76023644,186.8,186.79,62.9]
[1761909229028,13.15008149,186.8,186.79,62.9]
[1761909229234,16.76023644,186.8,186.79,62.9]
[1761909229433,13.15008149,186.8,186.79,62.9]
[1761909229648,16.76023644,186.8,186.79,62.9]
[1761909229814,12.47008149,186.8,186.79,62.9]
[1761909230009,16.76089872,186.8,186.79,62.9]
[1761909230205,13.15074377,186.8,186.79,62.9]
[1761909230418,16.76089872,186.8,186.79,62.9]
[1761909230633,13.15074377,186.8,186.79,62.9]
[1761909230839,16.76089872,186.8,186.79,62.9]
[1761909231006,13.15074377,186.8,186.79,62.9]
[1761909231210,16.76089872,186.8,186.79,62.9]
[1761909231540,13.15074377,186.8,186.79,62.9]
[1761909231833,16.76089872,186.8,186.79,62.9]
[1761909232043,13.15074377,186.8,186.79,62.9]
[1761909232221,16.76089872,186.8,186.79,62.9]
[1761909232445,16.76089872,186.8,186.79,0.2]
[1761909232647,26.54972641,186.8,186.79,0.2]
[1761909236167,26.54972641,186.8,186.79,0.2]
[1761909248857,26.54535899,186.8,186.79,0.2]
[1761909251365,25.4313836,186.8,186.79,0.2]
[1761909253095,25.4313836,186.8,186.76,0.2]
[1761909253096,20.592,186.77,186.76,0.2]
[1761909253382,26.59108191,186.77,186.76,0.2]
[1761909253596,30.20123686,186.77,186.76,0.89]
[1761909254785,35.55541579,186.77,186.76,0.2]
[1761909259393,31.94526084,186.77,186.76,0.86]
[1761909259693,31.94526084,186.77,186.76,0.2]
[1761909259889,35.55521361,186.77,186.76,0.2]
[1761909260269,36.23521361,186.77,186.76,0.2]
[1761909266213,35.55521361,186.77,186.76,0.2]
[1761909267006,36.23521361,186.77,186.76,0.2]
[1761909268408,35.55521361,186.77,186.76,0.2]
[1761909269190,35.55521361,186.77,186.76,0.87]
[1761909270902,33.56880476,186.77,186.76,0.2]
[1761909271099,35.55521361,186.77,186.76,0.2]
[1761909272202,36.23521361,186.77,186.76,0.2]
[1761909272400,35.55521361,186.77,186.76,0.87]
[1761909272916,35.55521361,186.77,186.76,0.2]
[1761909273114,35.55521361,186.77,186.76,0.87]
[1761909276701,35.55521361,186.77,186.76,0.2]
[1761909277694,36.23521361,186.77,186.76,0.2]
[1761909282619,15.64321361,186.77,186.76,0.2]
[1761909282805,13.65680476,186.77,186.76,0.2]
[1761909283005,12.97680476,186.77,186.76,0.2]
[1761909283214,14.96321361,186.77,186.76,0.2]
[1761909284128,15.64321361,186.77,186.76,0.2]
[1761909284819,31.74584102,186.77,186.76,0.2]
[1761909287298,31.06584102,186.77,186.76,0.2]
[1761909287503,14.96321361,186.77,186.76,0.87]
[1761909287704,14.96321361,186.77,186.76,0.2]
[1761909288414,15.64321361,186.77,186.76,0.2]
[1761909288794,31.06670538,186.77,186.76,0.2]
[1761909289929,31.0737614,186.77,186.76,0.2]
[1761909290513,31.7537614,186.77,186.76,0.2]
[1761909290819,31.0737614,186.77,186.76,0.2]
[1761909293525,31.7537614,186.77,186.76,0.2]
[1761909294126,29.08735255,186.77,186.76,0.2]
[1761909294315,14.97026963,186.77,186.76,0.2]
[1761909295007,14.97169287,186.77,186.76,0.2]
[1761909299711,14.97169287,186.77,186.76,0.91]
[1761909300046,14.97169287,186.77,186.76,0.2]
[1761909300406,9.61751394,186.77,186.76,0.91]
[1761909300625,4.02115232,186.77,186.76,0.91]
[1761909300930,6.00756117,186.77,186.76,0.91]
[1761909301103,9.62618793,186.77,186.76,0.91]
[1761909301503,14.98036686,186.77,186.76,0.91]
[1761909303835,4.02115232,186.77,186.76,0.91]
[1761909304020,4.02115232,186.77,186.76,65.59640885]
[1761909304208,2.63115232,186.77,186.76,85.06104509]
[1761909304407,2.63115232,186.77,186.76,87.04745394]
[1761909306434,7.33892392,186.83,186.76,87.04745394]
[1761909306611,7.33892392,186.83,186.76,86.33745394]
[1761909306805,7.33892392,186.83,186.77,1.98640885]
[1761909307205,7.33892392,186.83,186.78,1.98640885]
[1761909307442,7.33892392,186.83,186.78,14.67908154]
[1761909307818,1.98640885,186.83,186.78,14.67908154]
[1761909308245,5.35218372,186.84,186.78,7.34015762]
[1761909308246,7.33859257,186.84,186.78,7.34015762]
[1761909308451,1.98640885,186.83,186.78,7.34015762]
[1761909308759,1.98640885,186.83,186.79,5.35218372]
[1761909308921,7.33909797,186.83,186.79,5.35218372]
[1761909309652,5.35268912,186.83,186.79,5.35218372]
[1761909309852,1.98640885,186.81,186.79,5.35218372]
[1761909310517,1.98640885,186.82,186.79,5.35218372]
[1761909310716,7.33909797,186.83,186.79,5.35218372]
[1761909311123,1.98640885,186.82,186.79,5.35218372]
[1761909311651,1.98640885,186.82,186.79,68.05218372]
[1761909311853,1.98640885,186.84,186.79,70.03859257]
[1761909312224,1.98640885,186.83,186.79,68.05218372]
[1761909312748,1.98640885,186.82,186.79,68.05218372]
[1761909313424,3.10093706,186.82,186.79,68.05218372]
[1761909313621,3.77093706,186.82,186.79,68.05218372]
[1761909314033,3.10093706,186.82,186.79,62.7]
[1761909314355,3.10093706,186.82,186.8,5.35254936]
[1761909314551,3.10093706,186.82,186.8,68.05254936]
[1761909314757,3.77093706,186.82,186.8,68.05254936]
[1761909314927,3.77093706,186.82,186.8,62.7]
[1761909315126,3.77093706,186.82,186.81,5.35254936]
[1761909315359,3.10093706,186.82,186.81,5.35254936]
[1761909315536,8.45368301,186.82,186.81,5.35254936]
[1761909316347,12.45749334,186.82,186.81,5.35254936]
[1761909317260,4.00381033,186.82,186.81,5.35254936]
[1761909318636,9.35655628,186.82,186.81,5.35254936]
[1761909318840,13.16749334,186.82,186.81,5.35254936]
[1761909319437,7.10474739,186.82,186.81,5.35254936]
[1761909319735,4.00381033,186.82,186.81,5.35254936]
[1761909320337,4.00381033,186.82,186.81,68.05254936]
[1761909321445,3.10093706,186.9,186.82,9.78882769]
[1761909321644,7.10063484,186.89,186.83,3.10093706]
[1761909321853,3.99969778,186.88,186.84,3.10093706]
[1761909322053,3.99969778,186.87,186.85,3.10093706]
[1761909322342,6.06003881,186.92,186.86,8.45253718]
[1761909322533,7.09797197,186.91,186.86,8.45253718]
[1761909322737,3.99703491,186.9,186.86,8.45253718]
[1761909322949,3.99703491,186.89,186.86,8.45253718]
[1761909323238,3.99703491,186.88,186.86,8.45253718]
[1761909323440,3.10093706,186.91,186.86,8.45253718]
[1761909323656,3.99456057,186.9,186.86,8.45253718]
[1761909323853,3.99456057,186.89,186.86,8.45253718]
[1761909324058,3.10093706,186.92,186.86,8.45253718]
[1761909324262,3.99455972,186.91,186.86,8.45253718]
[1761909324446,3.99455972,186.9,186.87,3.10093706]
[1761909324752,0.71,186.93,186.88,13.91482641]
[1761909324964,3.99220925,186.92,186.88,13.91482641]
[1761909325166,3.99220925,186.91,186.88,13.91482641]
[1761909325362,0.71,186.92,186.88,13.91482641]
[1761909325576,7.09092688,186.91,186.88,13.91482641]
[1761909325863,3.98998982,186.9,186.88,13.91482641]
[1761909326248,4.69998982,186.9,186.88,13.91482641]
[1761909326466,0.71,186.9,186.88,13.91482641]
[1761909327545,8.4508544,186.92,186.88,13.91482641]
[1761909327768,4.69699911,186.91,186.88,13.91482641]
[1761909328070,3.98699911,186.91,186.88,13.91482641]
[1761909329081,4.63699911,186.91,186.88,13.91482641]
[1761909329368,3.75093706,186.9,186.88,76.61482641]
[1761909329843,0.65,186.89,186.88,76.61482641]
[1761909332646,0.65,186.9,186.88,76.61482641]
[1761909333042,8.45111141,186.91,186.88,62.7]
[1761909333043,3.10093706,186.91,186.88,62.7]
[1761909333359,9.1008227,186.92,186.89,13.37339445]
[1761909333558,0.65,186.92,186.89,13.37339445]
[1761909333753,4.63289097,186.92,186.89,13.37339445]
[1761909333958,0.65,186.92,186.89,13.37339445]
[1761909334158,0.65,186.91,186.89,13.37339445]
[1761909335080,0.65,186.91,186.89,76.07339445]
[1761909335577,0.65,186.91,186.89,62.7]
[1761909335784,0.65,186.91,186.9,13.37265467]
[1761909335955,0.65,186.91,186.9,76.07265467]
[1761909336983,3.75093706,186.91,186.9,76.07265467]
[1761909338268,7.73423536,186.91,186.9,76.07265467]
[1761909338988,4.6332983,186.91,186.9,76.07265467]
[1761909339291,0.65,186.91,186.9,76.07265467]
[1761909339490,3.10093706,186.92,186.9,76.07265467]
[1761909339675,3.75093706,186.92,186.9,76.07265467]
[1761909339877,3.75093706,186.92,186.9,62.7]
[1761909340064,3.10093706,186.92,186.91,13.37265467]
[1761909340261,7.08516319,186.92,186.91,13.37265467]
[1761909340683,3.98422613,186.92,186.91,13.37265467]
[1761909340906,3.98422613,186.92,186.91,76.07265467]
[1761909341199,4.63422613,186.92,186.91,76.07265467]
[1761909342861,4.63422613,186.92,186.91,62.7]
[1761909344190,3.98422613,186.92,186.91,62.7]
[1761909347790,3.98422613,186.92,186.91,68.05016853]
[1761909347974,3.98422613,186.92,186.91,71.15110559]
[1761909348168,3.98422613,186.95,186.91,71.15110559]
[1761909348375,3.98422613,186.94,186.91,71.15110559]
[1761909348591,5.99879747,186.96,186.91,71.15110559]
[1761909348774,3.99005228,186.95,186.91,71.15110559]
[1761909348975,3.99005228,186.94,186.91,71.15110559]
[1761909349293,5.34879747,186.96,186.91,71.15110559]
[1761909349502,3.99003884,186.95,186.91,68.05016853]
[1761909349677,3.99003884,186.94,186.91,71.15110559]
[1761909349997,9.09938868,186.97,186.91,71.15110559]
[1761909350180,3.9896302,186.96,186.92,3.10093706]
[1761909350384,3.75093706,186.97,186.92,3.10093706]
[1761909350385,3.9896302,186.95,186.92,3.10093706]
[1761909350572,3.75093706,186.97,186.92,3.10093706]
[1761909350893,3.98945187,186.96,186.92,3.10093706]
[1761909351094,3.98945187,186.95,186.92,3.10093706]
[1761909351392,3.75093706,186.97,186.93,5.3495961]
[1761909351602,3.98902187,186.96,186.93,5.3495961]
[1761909351798,3.98902187,186.95,186.93,5.3495961]
[1761909351976,3.10093706,186.97,186.93,5.3495961]
[1761909352288,4.63902187,186.96,186.92,8.45076896]
[1761909352490,3.98902187,186.95,186.92,8.45076896]
[1761909352796,0.65,186.96,186.92,71.15076896]
[1761909352994,3.98872971,186.95,186.92,71.15076896]
[1761909353296,0.65,186.96,186.92,68.0498319]
[1761909353476,3.98857838,186.95,186.92,68.0498319]
[1761909353677,0.65,186.97,186.92,71.15076896]
[1761909353894,3.98857838,186.96,186.92,71.15076896]
[1761909354192,3.98857838,186.95,186.92,71.15076896]
[1761909354382,3.75093706,186.97,186.92,71.15076896]
[1761909354580,3.98859417,186.96,186.92,71.15076896]
[1761909354896,3.98859417,186.95,186.92,71.15076896]
[1761909355091,0.65,186.97,186.92,71.15076896]
[1761909355294,3.98859481,186.96,186.92,71.15076896]
[1761909355486,3.98859481,186.95,186.92,71.15076896]
[1761909355684,3.75093706,186.97,186.92,71.15076896]
[1761909355878,3.98896632,186.96,186.92,68.0498319]
[1761909356067,0.65,186.96,186.92,68.0498319]
[1761909356272,4.63977587,186.95,186.92,68.0498319]
[1761909356470,0.65,186.95,186.92,68.0498319]
[1761909356672,0.65,186.94,186.92,68.0498319]
[1761909358404,0.65,186.94,186.92,62.7]
[1761909359015,9.10024803,186.94,186.92,62.7]
[1761909359297,3.10093706,186.93,186.92,62.7]
[1761909359498,3.78093706,186.93,186.92,62.7]
[1761909361297,7.7754486,186.93,186.92,62.7]
[1761909362087,4.67451154,186.93,186.92,62.7]
[1761909364018,3.99451154,186.93,186.92,62.7]
[1761909364698,3.99451154,186.93,186.92,71.15081936]
[1761909365010,0.78,186.98,186.92,71.15081936]
[1761909365208,3.99910258,186.97,186.93,3.10093706]
[1761909365384,3.99910258,186.96,186.93,3.10093706]
[1761909365583,3.99910258,186.95,186.94,5.34930993]
[1761909365801,3.99910258,186.95,186.92,76.59818069]
[1761909366107,4.00075222,186.94,186.92,68.04964168]
[1761909366409,3.10093706,186.94,186.92,62.7]
[1761909366614,7.78385873,186.93,186.92,62.7]
[1761909368387,7.78385873,186.93,186.88,5.35078237]
[1761909368605,4.68292167,186.92,186.88,5.35078237]
[1761909368795,7.10385873,186.91,186.88,5.35078237]
[1761909368990,4.00292167,186.9,186.88,5.35078237]
[1761909369192,3.78093706,186.92,186.88,5.35078237]
[1761909369403,4.00394662,186.91,186.88,5.35078237]
[1761909369600,4.00394662,186.9,186.88,5.35078237]
[1761909369804,3.78093706,186.92,186.88,5.35078237]
[1761909370006,4.00430192,186.91,186.88,5.35078237]
[1761909370192,4.00430192,186.9,186.88,5.35078237]
[1761909370394,0.68,186.91,186.88,5.35078237]
[1761909370611,4.00440804,186.9,186.88,5.35078237]
[1761909370802,0.68,186.91,186.88,5.35078237]
[1761909370993,4.00440761,186.9,186.88,5.35078237]
[1761909371192,0.68,186.91,186.88,62.7]
[1761909371415,7.7853451,186.9,186.88,62.7]
[1761909371601,4.00440804,186.89,186.88,62.7]
[1761909372110,7.7853451,186.89,186.88,62.7]
[1761909372316,7.7853451,186.89,186.85,62.7]
[1761909372488,3.10093706,186.87,186.85,62.7]
[1761909372686,4.00440804,186.86,186.85,62.7]
[1761909376700,5.98794157,186.86,186.85,62.7]
[1761909376895,6.66794157,186.86,186.85,62.7]
[1761909377321,6.66794157,186.86,186.78,13.38451878]
[1761909377322,25.39854201,186.86,186.78,62.7]
[1761909377516,1.98353353,186.82,186.78,62.7]
[1761909377714,4.00440804,186.81,186.78,68.05389106]
[1761909377902,4.00440804,186.8,186.78,68.05389106]
[1761909378102,1.98353353,186.81,186.78,68.05389106]
[1761909378304,4.00458746,186.8,186.78,68.05389106]
[1761909378501,1.98353353,186.81,186.78,68.05389106]
[1761909378746,4.00201364,186.8,186.78,68.05389106]
[1761909378908,1.98353353,186.81,186.78,68.05389106]
[1761909379112,6.65554717,186.8,186.78,62.7]
[1761909379302,2.65353353,186.8,186.76,62.9]
[1761909381226,1.98353353,186.81,186.76,68.25433685]
[1761909381422,1.98353353,186.81,186.76,70.23787038]
[1761909381724,0.67,186.8,186.76,70.23787038]
[1761909381932,2.65353353,186.8,186.76,68.25433685]
[1761909382128,0.67,186.8,186.76,68.25433685]
[1761909382330,2.65353353,186.8,186.76,68.25433685]
[1761909383819,0.67,186.8,186.76,70.23787038]
[1761909384429,2.65353353,186.8,186.76,68.25433685]
[1761909384819,2.65353353,186.8,186.76,62.9]
[1761909384820,2.65353353,186.79,186.76,62.9]
[1761909385634,0.67,186.78,186.76,62.9]
[1761909385948,2.65353353,186.79,186.76,62.9]
[1761909387123,0.67,186.78,186.76,62.9]
[1761909387344,2.65353353,186.78,186.76,62.9]
[1761909387561,1.98353353,186.77,186.76,0.2]
[1761909387731,2.65353353,186.77,186.76,0.2]
[1761909389223,8.00771246,186.77,186.76,0.2]
[1761909390760,11.9957222,186.77,186.76,0.2]
[1761909395744,8.00771246,186.77,186.76,0.2]
[1761909396351,6.02417893,186.77,186.76,0.2]
[1761909396556,8.00771246,186.77,186.76,0.2]
[1761909399463,11.97497773,186.77,186.76,0.2]
[1761909401653,9.9914442,186.77,186.76,0.2]
[1761909401969,11.97497773,186.77,186.76,0.2]
[1761909402675,32.56697773,186.77,186.76,0.2]
[1761909409457,30.5834442,186.77,186.76,0.2]
[1761909409677,32.56697773,186.77,186.76,0.2]
[1761909415908,32.58426858,186.77,186.76,0.2]
[1761909419485,32.59478134,186.77,186.76,0.2]
[1761909420206,24.58706888,186.77,186.76,0.2]
[1761909420417,7.5925961,186.77,186.76,0.2]
[1761909420584,3.99506888,186.77,186.76,0.2]
[1761909420909,3.99506888,186.77,186.76,2.18353353]
[1761909421086,3.99506888,186.77,186.76,7.53799915]
[1761909421484,3.99506888,186.77,186.76,17.32682684]
[1761909421801,7.33513572,186.86,186.76,30.7129909]
[1761909422004,5.98361726,186.85,186.8,1.98353353]
[1761909422201,4.00008373,186.84,186.8,1.98353353]
[1761909422504,4.00008373,186.83,186.8,1.98353353]
[1761909422719,4.00008373,186.82,186.76,28.72945737]
[1761909422907,4.00008373,186.81,186.79,20.592]
[1761909423214,4.00008373,186.8,186.79,20.592]
[1761909423418,4.00008373,186.8,186.79,25.94560565]
[1761909424028,4.00008373,186.8,186.79,27.92913918]
[1761909424812,4.00008373,186.8,186.79,37.71796687]
[1761909425120,1.98353353,186.88,186.79,51.63734156]
[1761909425297,3.99969962,186.87,186.83,1.98353353]
[1761909425502,3.99969962,186.86,186.82,1.98353353]
[1761909425701,3.99969962,186.85,186.82,7.33605731]
[1761909425905,3.99969962,186.84,186.82,7.33605731]
[1761909426100,3.99969962,186.83,186.82,5.35252378]
[1761909426294,1.98353353,186.86,186.82,68.05252378]
[1761909426494,3.59704993,186.9,186.82,62.7]
[1761909426495,1.98353353,186.84,186.82,62.7]
[1761909426698,4.71608715,186.85,186.82,62.7]
[1761909426699,5.97962068,186.83,186.82,62.7]
[1761909427334,3.99608715,186.83,186.82,62.7]
[1761909427493,5.97962068,186.83,186.82,62.7]
[1761909427895,3.99608715,186.83,186.82,62.7]
[1761909430228,3.99379785,186.83,186.82,62.7]
[1761909430526,1.98353353,186.86,186.82,62.7]
[1761909430826,3.99296352,186.85,186.82,62.7]
[1761909431031,3.99296352,186.84,186.82,62.7]
[1761909431323,1.98353353,186.86,186.82,68.0526695]
[1761909431551,3.99183138,186.85,186.82,70.03620303]
[1761909431730,1.98353353,186.87,186.82,70.03620303]
[1761909432032,3.99175414,186.86,186.82,70.03620303]
[1761909432529,1.98353353,186.87,186.82,68.0526695]
[1761909432826,3.99028439,186.86,186.82,70.03620303]
[1761909433034,2.70353353,186.87,186.82,70.03620303]
[1761909433230,3.99035297,186.86,186.82,70.03620303]
[1761909433399,7.33484767,186.87,186.82,70.03620303]
[1761909433605,7.33459778,186.88,186.83,1.98353353]
[1761909433818,3.98924973,186.87,186.83,1.98353353]
[1761909434006,5.97278326,186.87,186.82,70.03620303]
[1761909434213,2.70353353,186.87,186.82,70.03620303]
[1761909434913,1.98353353,186.87,186.82,70.03620303]
[1761909436421,2.70353353,186.87,186.82,68.0526695]
[1761909436611,2.70353353,186.87,186.82,70.03620303]
[1761909437315,3.81941528,186.87,186.82,71.15208478]
[1761909438029,8.45047953,186.88,186.82,71.15208478]
[1761909438216,0.71,186.87,186.82,71.15208478]
[1761909438532,0.71,186.87,186.82,68.0526695]
[1761909438728,3.09941528,186.88,186.83,8.45180184]
[1761909439319,3.80941528,186.89,186.84,3.09941528]
[1761909439519,3.98332799,186.88,186.84,3.09941528]
[1761909439721,0.71,186.89,186.84,3.09941528]
[1761909439919,4.69332693,186.89,186.84,3.09941528]
[1761909440621,3.98332693,186.89,186.84,71.15135791]
[1761909440825,3.98332693,186.89,186.85,3.09941528]
[1761909441029,3.80941528,186.92,186.87,3.09941528]
[1761909441252,3.98219806,186.91,186.87,65.79941528]
[1761909442016,0.71,186.9,186.87,62.7]
[1761909445446,3.09941528,186.89,186.87,62.7]
[1761909445746,3.09941528,186.88,186.87,62.7]
[1761909445944,3.09941528,186.88,186.83,68.05225034]
[1761909446225,3.80941528,186.87,186.83,68.05225034]
[1761909448160,0.71,186.86,186.83,68.05225034]
[1761909448343,3.80941528,186.87,186.83,68.05225034]
[1761909448646,0.71,186.87,186.83,71.15166562]
[1761909449171,3.09941528,186.86,186.83,62.7]
[1761909449670,3.77941528,186.86,186.83,62.7]
[1761909449826,0.68,186.85,186.83,62.7]
[1761909450340,0.68,186.86,186.83,62.7]
[1761909451946,3.77941528,186.88,186.83,71.15179283]
[1761909452456,0.68,186.87,186.83,68.05237755]